Cogmind - Beta 10.2 @@@ ROGUE MODE // 2020.12.06 @ 22:45:11 Player: NinjaBub504 Result: Destroyed by G-47 Trooper with Particle Gun Performance ------------- Evolutions (0) 0 Regions Visited (1) 200 Robots Destroyed (16) 80 Value Destroyed (347) 347 Prototype IDs (0) 0 Alien Tech Used (0) 0 Bonus (0) 0 TOTAL SCORE: 627 Bonus ------- None Cogmind --------- Core Integrity 0/250 Matter 300/300 Energy 100/100 System Corruption 0% Temperature Cool (9) Movement Core (50) Location -10/Materials Parts ------- > --- POWER (1) -------- (None) > --- PROPULSION (2) --- (None) > --- UTILITY (2) ------ (None) > --- WEAPON (2) ------- Mace > --- INVENTORY (4) ---- Heat Sink Improved Heat Sink Sensor Array Peak State ------------ > --- POWER ------------ (None) > --- PROPULSION ------- Compact Wheel Flight Unit > --- UTILITY ---------- Small Matter Pod Visual Processing Unit > --- WEAPON ----------- Assault Rifle Mace > --- INVENTORY -------- Heat Sink Improved Heat Sink Sensor Array [Rating: 8] Favorites ----------- Power Light Ion Engine Engine Light Ion Engine Propulsion Wheel Wheel Wheel Flight Unit Flight Unit Utility Small Matter Pod Device Heat Sink Storage Small Matter Pod Processor Visual Processing Unit Weapon Assault Rifle Ballistic Gun Assault Rifle Launcher Grenade Launcher Impact Weapon Mace Build | -11 -10 ------- Run | Scr Mat Slots Evolved . | . . Power . | . . Propulsion . | . . Utility . | . . Weapon . | . . Parts Attached 11 | 6 5 Power 1 | 1 . Engine 1 | 1 . Core . | . . Reactor . | . . Propulsion 4 | 2 2 Treads . | . . Leg . | . . Wheel 3 | 2 1 Hover . | . . Flight 1 | . 1 Utility 3 | 2 1 Device 1 | 1 . Storage 1 | 1 . Processor 1 | . 1 Hackware . | . . Protection . | . . Artifact . | . . Weapon 3 | 1 2 Energy Gun . | . . Energy Cannon . | . . Ballistic Gun 1 | 1 . Ballistic Cannon . | . . Launcher 1 | . 1 Special Weapon . | . . Impact Weapon 1 | . 1 Slashing Weapon . | . . Piercing Weapon . | . . Special Melee Weapon . | . . Unidentified Prototypes . | . . Parts Lost 8 | . 8 Power 1 | . 1 Propulsion 4 | . 4 Utility 2 | . 2 Weapon 1 | . 1 Highest Loss Streak 5 | . 5 Average Slot Usage (%) 80 | . 80 Engine 4 | . 4 Wheel 16 | . 16 Flight 9 | . 9 Device 2 | . 2 Storage 13 | . 13 Processor 11 | . 11 Ballistic Gun 13 | . 13 Launcher 7 | . 7 Impact Weapon 1 | . 1 Naked Turns . | . . Heaviest Build 7 | 7 7 Greatest Support 20 | 20 20 Greatest Overweight (x) 1 | . 1 Average Overweight (x) . | . . Largest Inventory Capacity 4 | 4 4 Average Capacity 4 | 4 4 Most Carried 4 | 3 4 Average Carried 2 | 1 2 Final Capacity 4 | 4 4 Final Carried 3 | 2 3 Class Distribution -------------------- 100% | Mutant Dominant Class ---------------- Mutant | -10/Materials Resources | -11 -10 ----------- Run | Scr Mat Matter Collected 622 | 346 276 Remotely . | . . Salvage Created 385 | 99 286 Parts 28 | 9 19 Haulers Intercepted . | . . Recyclers Shooed 1 | . 1 Parts Field Recycled . | . . Retrieved Matter . | . . Parts Self-Destructed . | . . Prevented . | . . Kills | -11 -10 ------- Run | Scr Mat Combat Hostiles Destroyed 11 | 1 10 Guns 8 | 1 7 AOE 3 | . 3 Classes Destroyed 5 | 3 2 Worker 2 | 1 1 Tunneler 2 | 2 . Watcher 1 | . 1 Swarmer 3 | . 3 Grunt 8 | 1 7 Best Kill Streak 4 | 3 4 Combat Bots Only 3 | 1 3 Max Kills in Single Turn 2 | 1 2 Gunslinging . | . . Exploded 1 | . 1 Melee . | . . Uniques/NPCs Destroyed . | . . Combat | -11 -10 -------- Run | Scr Mat Damage Taken 632 | 109 523 Core 259 | 54 205 Absorbed by Shields . | . . Core Remaining (%) 78 | 78 . Volleys Fired 84 | 12 72 Largest 2 | 1 2 Hottest 50 | 20 50 Shots Fired 88 | 12 76 Gun 77 | 12 65 Cannon . | . . Launcher 11 | . 11 Special . | . . Kinetic 77 | 12 65 Thermal . | . . Explosive 11 | . 11 Electromagnetic . | . . Robot Hit Streak 7 | 3 7 Robot Miss Streak 3 | 1 3 Penetration Max . | . . Secondary Targets . | . . Shots Hit Robots 59 | 8 51 Core Hits 27 | 5 22 Critical Hits . | . . Critical Kills . | . . Critical Parts Destroyed . | . . Melee Attacks 4 | . 4 Impact 4 | . 4 Slashing . | . . Piercing . | . . Sneak Attacks . | . . Combat Hostiles . | . . Follow-up Attacks . | . . Damage Inflicted 1051 | 93 958 Guns 553 | 93 460 Cannons . | . . Explosions 426 | . 426 Melee 72 | . 72 Ramming . | . . Kinetic 553 | 93 460 Thermal . | . . Explosive 426 | . 426 Electromagnetic . | . . Impact 72 | . 72 Slashing . | . . Piercing . | . . Highest Corruption . | . . Average Corruption . | . . Corruption Purged . | . . Overload Shots . | . . Overflow Damage . | . . Projectiles . | . . Explosions . | . . Melee . | . . Knockbacks 1 | . 1 Impact 1 | . 1 Kinetic . | . . Secondary . | . . Self-Inflicted Damage 79 | . 79 Shots 6 | . 6 Rammed . | . . Targets Rammed . | . . Kicked . | . . Crushed . | . . Highest Temperature 2 | . 2 Average Temperature 2 | . 2 Received Heat Transfer 279 | 60 219 Siege Activations . | . . Robots Corrupted . | . . Combat Hostiles . | . . Parts Fried . | . . Impact Corruptions . | . . Robots Melted . | . . Combat Hostiles . | . . Parts Melted . | . . Heat Transferred . | . . Parts Sabotaged . | . . Parts Stolen . | . . Parts Stripped . | . . Power Chain Reactions . | . . Missiles Intercepted . | . . Alert | -11 -10 ------- Run | Scr Mat Peak Influence 279 | 35 279 Initial 22 | . 22 Average 84 | 26 125 Maximum Alert Level 1 | . 1 Low Security (%) 89 | 100 82 Level 1 10 | . 17 Level 2 . | . . Level 3 . | . . Level 4 . | . . Level 5 . | . . High Security . | . . Max Security . | . . Squads Dispatched 1 | . 1 Investigation . | . . Extermination . | . . Reinforcement 1 | . 1 Assault . | . . Garrison . | . . Intercept . | . . Construction Impeded . | . . Haulers Reinforced . | . . Stealth | -11 -10 --------- Run | Scr Mat Distress Signals . | . . Communications Jammed . | . . Distress Signals . | . . Times Spotted 19 | 1 18 Peak Tracking Total 3 | 1 3 Tactical Retreats 1 | . 1 Traps | -11 -10 ------- Run | Scr Mat Traps Triggered . | . . Indirectly . | . . Trap Hack Attempts . | . . Triggered . | . . Disarmed . | . . Reprogrammed . | . . Reused . | . . Traps Extracted . | . . Installed . | . . Triggered . | . . Machines | -11 -10 ---------- Run | Scr Mat Machines Disabled . | . . Max in Single Turn . | . . Machines Sabotaged . | . . Garrisons Compromised . | . . Overloaded Fab Kills . | . . Fab Network Shutdowns . | . . Hacking | -11 -10 --------- Run | Scr Mat Machines Accessed 1 | . 1 Terminals . | . . Fabricators . | . . Repair Stations . | . . Recycling Units 1 | . 1 Scanalyzers . | . . Garrison Access . | . . Total Hacks 6 | . 6 Successful 6 | . 6 Failed . | . . Catastrophic . | . . Database Lockouts . | . . Manual . | . . Terminals . | . . Fabricators . | . . Repair Stations . | . . Recycling Units 6 | . 6 Scanalyzers . | . . Garrison Access . | . . Terminal Hacks . | . . Fabricator Hacks . | . . Repair Station Hacks . | . . Recycling Unit Hacks 6 | . 6 Recycle Component 2 | . 2 Process 1 | . 1 Report Inventory 1 | . 1 Retrieve Matter 2 | . 2 Scanalyzer . | . . Garrison Access Hacks . | . . Unauthorized Hacks . | . . Terminals . | . . Fabricators . | . . Repair Stations . | . . Recycling Units . | . . Scanalyzers . | . . Garrison Access . | . . Data Cores Recovered . | . . Used . | . . Hacking Detections 1 | . 1 Full Trace Events 1 | . 1 Feedback Events . | . . Feedback Blocked . | . . Robot Schematics Acquired . | . . Robots Built . | . . Matter . | . . Time . | . . Total Robot Build Rating . | . . Part Schematics Acquired . | . . Parts Built . | . . Matter . | . . Time . | . . Total Part Build Rating . | . . Parts Repaired . | . . Time . | . . Parts Recycled 2 | . 2 Recycled Matter 90 | . 90 Retrieved Matter 90 | . 90 Retrieved Components . | . . Parts Scanalyzed . | . . Part Schematics Acquired . | . . Parts Damaged . | . . Bothacking | -11 -10 ------------ Run | Scr Mat Used RIF Installer . | . . Robots Hacked . | . . Non-combat . | . . Combat . | . . Robot Hacks Applied . | . . Relay Couplers Released . | . . Robots Rewired . | . . Allies Hacked . | . . Hacks Repelled . | . . Allies | -11 -10 -------- Run | Scr Mat Total Allies . | . . Largest Group . | . . Highest-Rated Group . | . . Highest-Rated Ally . | . . Total Orders . | . . Ally Attacks . | . . Total Damage . | . . Kills . | . . Allies Corrupted . | . . Allies Melted . | . . Intel | -11 -10 ------- Run | Scr Mat Robot Analysis Total . | . . Derelict Logs Recovered . | . . Drone Launches . | . . Drone Recoveries . | . . Exploration | -11 -10 ------------- Run | Scr Mat Turns Passed 909 | 374 535 Spaces Moved 463 | 154 309 Core 121 | 27 94 Treads . | . . Legs . | . . Wheels 311 | 127 184 Hover . | . . Flight 31 | . 31 Fastest Speed 50 | 50 50 Average Speed 90 | 74 98 Slowest Speed 125 | 80 125 Overloaded Moves . | . . Propulsion Burnouts . | . . Robots Hopped . | . . Cave-ins Triggered . | . . Exploration Rate (%) 29 | 10 49 Regions Visited 1 Branch Regions . Pre-discovered Areas . | . . Known Exits Taken . | . . Unknown Exits Taken 1 | 1 . Scrap Searched . | . . Spaces Dug . | . . Terrain Destroyed 77 | . 77 Melee . | . . Projectile . | . . AOE 77 | . 77 Terrain Rammed . | . . Walls Destroyed . | . . Machines Disabled . | . . Actions | -11 -10 --------- Run | Scr Mat Total 861 | 401 460 Wait 275 | 218 57 Move 462 | 153 309 Hop . | . . Pick Up 19 | 10 9 Fast Attach . | . . Attach 11 | 6 5 Detach 1 | . 1 Swap . | . . Drop 5 | 2 3 Fire 84 | 12 72 Melee 4 | . 4 Ram . | . . Kick . | . . Crush . | . . Escape Stasis . | . . Rewire . | . . Trap . | . . Miscellaneous . | . . Route ------- -11/Scrapyard -10/Materials (discovered 2 exits: [*Mat] / [*Min]) History --------- Turn | Location | Event 2 | -11/Scrapyard | Met Revision 17 67 | -11/Scrapyard | Discovered new exit (range 8) 375 | -11/Scrapyard | Entered Materials 376 | -10/Materials | Build established: Mutant 574 | -10/Materials | Discovered new exit (range 18) 601 | -10/Materials | Core integrity fell below 50% 762 | -10/Materials | Discovered new exit (range 9) 897 | -10/Materials | Core integrity fell below 20% 910 | -10/Materials | Destroyed by G-47 Trooper with Particle Gun Last Messages --------------- Acquired 105 matter. Acquired Mni. Grenade Launcher. Dropped Mni. Grenade Launcher. Acquired Terrain Scan Processor. Dropped Terrain Scan Processor. Acquired Mace. Dropped Grenade Launcher. Bump into an enemy to attack with the active melee weapon. Even while active, melee weapons do not fire together with ranged weapons in the same volley. G-34 Mercenary destroyed. Sml. Matter Pod destroyed. K-01 Serf collects debris. Assault Rifle destroyed. K-01 Serf collects debris. G-47 Trooper knocked back. Flight Unit destroyed. Com. Wheel destroyed. Visual Processing Unit destroyed. [Achievement: First Step to Greatness] Map ----- +----------------------------------------------------+ | ?????????????######### # #??? | | ?????????????# # # #??? | | ?????????????# + # #??? | | ?????????????# # # #??? | | ?????????????##+##+### ####+######### | | ??????????????# # | | ??????????????# # | | ??????????????# # | | ??????????????# # # ####+####### | | ??????????????# # # #??????????# | | ??????????????# # #]]!!]/#??????????" | | ??????????????# # #]]!!//#????????? | | ??????????????# # ########????????"| | | ??????????????# # #??????????????#"" < | | ??????????????# # #??????????????#"| | | ????????????### # #???########???#" | | ????????????# #?? ???#""" | | ????????????# ## ! ??### | | ??????????? + + ]] ????# | | ?????????"" # ## [ ]] !????# | | ??????? # #?? ] ????# | | ????? ?## ##??? ????? | | ???? ???# #?????####?#+#?????? | | ???######????# #????????????????????? | | ?????????????# #????????????????????? | | ?????????????#@ #????????????????????? | | ?????????????#g #????????????????????? | | ?????????????# = #????????????????????? | | ?????????????#[% #????????????????????? | | ?????????????+ k +????????????????????? | | ?????????????# #????????????????????? | | ?????????????# #????????????????????? | | ?????????????# #????????????????????? | | ?????????????# #????????????????????? | | ?????????????# #????????????????????? | | ?????????????? ????????????????????? | | ?????????????? ????????????????????? | | ?????????????? ????????????????????? | | ?????????????? ????????????????????? | | ?????????????? !???????????????????? | | ?????????????? !???????????????????? | | ??????????????!!!!#???????????????????? | | ??????????????###?????????????????????? | | ??????????????????????????????????????? | | ??????????????????????????????????????? | | ??????????????????????????????????????? | | ??????????????????????????????????????? | | ??????????????????????????????????????? | | ??????????????????????????????????????? | | ??????????????????????????????????????? | +----------------------------------------------------+ Best States ------------- Heat Dissipation 35 Energy Generation 10 Energy Capacity 125 Matter Stores 350 Matter Capacity 350 Sight Range 18 Terrain Scan Density 10 Evasion (%) 50 Item Schematics ----------------- None Robot Schematics ------------------ None Fabricated ------------ Nothing Alien Tech Used ----------------- None Achievements -------------- First Step to Greatness Uninvited Guest Challenges ------------ None Game ------ Seed TeslaLinkedPerforator Manual? 0 Play Time 00:22:16 Cumulative 0.6 hours Start 2020.12.06 @ 22:24:29 End 2020.12.06 @ 22:45:11 Sessions 1 Manual Loads 0 Difficulty Rogue Special Mode None Game No. 1 Rogue 1 Adventurer 0 Explorer 0 Win Type - Total 0 Types 0/0/0/0/0/0/0/0/0 Lore% 0 Gallery% 1 Achievement% 0 Wizard Run 0 Options --------- ASCII 0 Keyboard 0 Movement Mouse Keybinds 0 Fullscreen 2 Font 16/Terminus Map View 76x50 Tactical HUD 0 Map Filters NONE Filters NONE Steam 1 RUN: 43d79ead-63b1-4d55-89bc-455f70076d9e